fUST/lending_fUST_20251014
["ID","MTS","AMOUNT","RATE_DAILY","PERIOD"]
[391197322,1760415054426,-500.0,0.00020364,2]
[391197323,1760415054435,-502.34818992,0.00020364,2]
[391197324,1760415054446,-500.0,0.00020364,2]
[391197325,1760415054455,-500.0,0.00020364,2]
[391197326,1760415054466,-500.0,0.00020364,2]
[391197327,1760415054480,-500.0,0.00020364,2]
[391197328,1760415054489,-500.0,0.00020364,2]
[391197329,1760415054498,-500.0,0.00020364,2]
[391197330,1760415054508,-500.0,0.00020364,2]
[391197331,1760415054517,-500.0,0.00020364,2]
[391197332,1760415054528,-500.0,0.00020364,2]
[391197333,1760415054538,-500.0,0.00020364,2]
[391197334,1760415054548,-500.0,0.00020364,2]
[391197335,1760415054557,-500.0,0.00020364,2]
[391197336,1760415054567,-500.0,0.00020364,2]
[391197337,1760415054576,-500.0,0.00020364,2]
[391197338,1760415054798,-500.0,0.00020364,2]
[391197339,1760415054808,-500.0,0.00020364,2]
[391197340,1760415054818,-500.0,0.00020364,2]
[391197341,1760415054827,-500.0,0.00020364,2]
[391197342,1760415054836,-500.0,0.00020364,2]
[391197343,1760415054846,-500.0,0.00020364,2]
[391197344,1760415054856,-500.0,0.00020364,2]
[391197345,1760415054866,-500.0,0.00020364,2]
[391197346,1760415054876,-500.0,0.00020364,2]
[391197347,1760415054885,-500.0,0.00020364,2]
[391197348,1760415054895,-500.0,0.00020364,2]
[391197349,1760415054904,-500.0,0.00020364,2]
[391197350,1760415054913,-500.0,0.00020364,2]
[391197351,1760415054922,-500.0,0.00020364,2]
[391197352,1760415054932,-500.0,0.00020364,2]
[391197353,1760415054941,-500.0,0.00020364,2]
[391197354,1760415054951,-500.0,0.00020364,2]
[391197355,1760415054961,-500.0,0.00020364,2]
[391197356,1760415054970,-500.0,0.00020364,2]
[391197357,1760415054980,-500.0,0.00020364,2]
[391197358,1760415054990,-500.0,0.00020364,2]
[391197359,1760415055000,-500.0,0.00020364,2]
[391197360,1760415055009,-500.0,0.00020364,2]
[391197361,1760415055019,-500.0,0.00020364,2]
[391197362,1760415055030,-500.0,0.00020364,2]
[391197363,1760415055040,-500.0,0.00020364,2]
[391197364,1760415055049,-500.0,0.00020364,2]
[391197365,1760415055059,-500.0,0.00020364,2]
[391197366,1760415055069,-500.0,0.00020364,2]
[391197367,1760415055078,-500.0,0.00020364,2]
[391197368,1760415055088,-500.0,0.00020364,2]
[391197369,1760415055097,-500.0,0.00020364,2]
[391197370,1760415055106,-500.0,0.00020364,2]
[391197371,1760415055116,-317.91174291,0.00020364,2]
[391197372,1760415055126,-500.0,0.00020364,2]
[391197373,1760415055135,-500.0,0.00020364,2]
[391197374,1760415055144,-500.0,0.00020364,2]
[391197375,1760415055154,-500.0,0.00020364,2]
[391197376,1760415055164,-500.0,0.00020364,2]
[391197377,1760415055173,-500.0,0.00020364,2]
[391197378,1760415055183,-500.0,0.00020364,2]
[391197379,1760415055192,-500.0,0.00020364,2]
[391197380,1760415055202,-500.0,0.00020364,2]
[391197381,1760415055211,-500.0,0.00020364,2]
[391197382,1760415055220,-500.0,0.00020364,2]
[391197383,1760415055230,-500.0,0.00020364,2]
[391197384,1760415055239,-500.0,0.00020364,2]
[391197385,1760415055248,-500.0,0.00020364,2]
[391197386,1760415055257,-500.0,0.00020364,2]
[391197387,1760415055267,-500.0,0.00020364,2]
[391197388,1760415055278,-500.0,0.00020364,2]
[391197389,1760415055287,-506.85072797,0.00020364,2]
[391197390,1760415055296,-408.45,0.00020364,2]
[391197391,1760415055305,-500.0,0.00020364,2]
[391197392,1760415055314,-500.0,0.00020364,2]
[391197393,1760415055323,-500.0,0.00020364,2]
[391197394,1760415055332,-500.0,0.00020364,2]
[391197395,1760415055341,-500.0,0.00020364,2]
[391197396,1760415055351,-228.8998359,0.00020364,2]
[391197397,1760415055360,-500.0,0.00020364,2]
[391197398,1760415055369,-500.0,0.00020364,2]
[391197399,1760415055378,-500.0,0.00020364,2]
[391197400,1760415055387,-500.0,0.00020364,2]
[391197401,1760415055397,-500.0,0.00020364,2]
[391197402,1760415055406,-500.0,0.00020364,2]
[391197403,1760415055415,-500.0,0.00020364,2]
[391197404,1760415055424,-500.0,0.00020364,2]
[391197405,1760415055434,-500.0,0.00020364,2]
[391197406,1760415055443,-500.0,0.00020364,2]
[391197407,1760415055453,-500.0,0.00020364,2]
[391197408,1760415055464,-500.0,0.00020364,2]
[391197409,1760415055475,-500.0,0.00020364,2]
[391197410,1760415055484,-500.0,0.00020364,2]
[391197411,1760415055493,-500.0,0.00020364,2]
[391197412,1760415055502,-500.0,0.00020364,2]
[391197413,1760415055516,-500.0,0.00020364,2]
[391197414,1760415055527,-500.0,0.00020364,2]
[391197415,1760415055536,-500.0,0.00020364,2]
[391197416,1760415055547,-418.32,0.00020364,2]
[391197417,1760415055557,-500.0,0.00020364,2]
[391197418,1760415055567,-500.0,0.00020364,2]
[391197419,1760415055576,-500.0,0.00020364,2]
[391197420,1760415055585,-500.0,0.00020364,2]
[391197421,1760415055595,-500.0,0.00020364,2]
[391197422,1760415055606,-500.0,0.00020364,2]
[391197423,1760415055616,-500.0,0.00020364,2]
[391197424,1760415055626,-441.94310271,0.00020364,2]
[391197425,1760415055635,-500.0,0.00020364,2]
[391197426,1760415055646,-500.0,0.00020364,2]
[391197427,1760415055655,-500.0,0.00020364,2]
[391197428,1760415055664,-500.0,0.00020364,2]
[391197429,1760415055674,-500.0,0.00020364,2]
[391197430,1760415055683,-500.0,0.00020364,2]
[391197431,1760415055693,-500.0,0.00020364,2]
[391197432,1760415055702,-500.0,0.00020364,2]
[391197433,1760415055711,-239.26667312,0.00020364,2]
[391197434,1760415055721,-500.0,0.00020364,2]
[391197435,1760415055731,-500.0,0.00020364,2]
[391197436,1760415055740,-500.0,0.00020364,2]
[391197437,1760415055750,-500.0,0.00020364,2]
[391197438,1760415055759,-500.0,0.00020364,2]
[391197439,1760415055768,-500.0,0.00020364,2]
[391197440,1760415055778,-500.0,0.00020364,2]
[391197441,1760415055787,-500.0,0.00020364,2]
[391197442,1760415055796,-500.0,0.00020364,2]
[391197443,1760415055806,-500.0,0.00020364,2]
[391197444,1760415055815,-500.0,0.00020364,2]
[391197445,1760415055824,-500.0,0.00020364,2]
[391197446,1760415055835,-500.0,0.00020364,2]
[391197447,1760415055845,-500.0,0.00020364,2]
[391197448,1760415055854,-500.0,0.00020364,2]
[391197449,1760415055863,-500.0,0.00020364,2]
[391197450,1760415055873,-500.0,0.00020364,2]
[391197451,1760415055882,-500.0,0.00020364,2]
[391197452,1760415055891,-500.0,0.00020364,2]
[391197453,1760415055901,-500.0,0.00020364,2]
[391197454,1760415055910,-500.0,0.00020364,2]
[391197455,1760415055919,-500.0,0.00020364,2]
[391197456,1760415055928,-351.59253372,0.00020364,2]
[391197457,1760415055937,-500.0,0.00020364,2]
[391197458,1760415055947,-611.91386401,0.00020364,2]
[391197459,1760415055956,-500.0,0.00020364,2]
[391197460,1760415055965,-567.87732806,0.00020364,2]
[391197461,1760415055974,-500.0,0.00020364,2]
[391197462,1760415055983,-500.0,0.00020364,2]
[391197463,1760415055993,-500.0,0.00020364,2]
[391197464,1760415056002,-500.0,0.00020364,2]
[391197465,1760415056011,-500.0,0.00020364,2]
[391197466,1760415056020,-502.7755679,0.00020364,2]
[391197467,1760415056030,-500.0,0.00020364,2]
[391197468,1760415056039,-500.0,0.00020364,2]
[391197469,1760415056049,-500.0,0.00020364,2]
[391197470,1760415056059,-500.0,0.00020364,2]
[391197471,1760415056068,-500.0,0.00020364,2]
[391197472,1760415056078,-500.0,0.00020364,2]
[391197473,1760415056088,-500.0,0.00020364,2]
[391197474,1760415056097,-500.0,0.00020364,2]
[391197475,1760415056107,-500.0,0.00020364,2]
[391197476,1760415056116,-500.0,0.00020364,2]
[391197477,1760415056125,-500.0,0.00020364,2]
[391197478,1760415056135,-500.0,0.00020364,2]
[391197479,1760415056144,-500.0,0.00020364,2]
[391197480,1760415056153,-500.0,0.00020364,2]
[391197481,1760415056162,-501.74210063,0.00020364,2]
[391197482,1760415056171,-500.0,0.00020364,2]
[391197483,1760415056180,-500.0,0.00020364,2]
[391197484,1760415056190,-500.0,0.00020373,2]
[391197485,1760415056199,-500.0,0.00020373,2]
[391197486,1760415056210,-501.04271343,0.00020373,2]
[391197487,1760415056219,-500.0,0.00020373,2]
[391197488,1760415056230,-500.0,0.00020373,2]
[391197489,1760415056242,-501.30341032,0.00020373,2]
[391197490,1760415056256,-500.0,0.00020373,2]
[391197491,1760415056270,-291.62011166,0.00020373,2]
[391197492,1760415056287,-500.0,0.00020373,2]
[391197493,1760415056300,-500.0,0.00020373,2]
[391197494,1760415056311,-500.0,0.00020373,2]
[391197495,1760415056323,-505.04973629,0.00020373,2]
[391197496,1760415056336,-500.0,0.00020373,2]
[391197497,1760415056349,-500.44147188,0.00020373,2]
[391197498,1760415056362,-503.54375814,0.00020373,2]
[391197499,1760415056375,-500.0,0.00020373,2]
[391197500,1760415056387,-500.0,0.00020373,2]
[391197501,1760415056401,-269.71089418,0.00020373,2]
[391197502,1760415056413,-507.42612004,0.00020373,2]
[391197503,1760415056426,-500.0,0.00020373,2]
[391197504,1760415056439,-3096.10088697,0.00020383,2]
[391197505,1760415056451,-380.68928375,0.00020447,2]
[391197506,1760415056463,-300.0,0.00020464,2]
[391197507,1760415056479,-300.0,0.00020464,2]
[391197508,1760415056491,-300.0,0.00020464,2]
[391197509,1760415056503,-300.0,0.00020464,2]
[391197510,1760415056516,-300.0,0.00020464,2]
[391197511,1760415056531,-300.0,0.00020464,2]
[391197512,1760415056542,-300.0,0.00020464,2]
[391197513,1760415056555,-300.0,0.00020464,2]
[391197514,1760415056566,-300.0,0.00020464,2]
[391197515,1760415056576,-300.0,0.00020464,2]
[391197516,1760415056587,-300.0,0.00020464,2]
[391197517,1760415056598,-300.0,0.00020464,2]
[391197518,1760415056610,-300.0,0.00020464,2]
[391197519,1760415056621,-300.0,0.00020464,2]
[391197520,1760415056633,-300.0,0.00020464,2]
[391197521,1760415056645,-381.39224645,0.00020465,2]
[391197522,1760415056657,-600.0,0.00020514,2]
[391197523,1760415056671,-156.67736394,0.00020548,2]
[391197524,1760415056684,-172.5,0.00020612,2]
[391197525,1760415056696,-500.0,0.00020612,2]
[391197526,1760415056710,-935.09750984,0.0002072,2]
[391197527,1760415056720,-501.28174254,0.00020721,2]
[391197528,1760415056731,-1004.55925999,0.00020721,2]
[391197529,1760415056741,-1000.82357862,0.00020721,2]
[391197530,1760415056752,-1001.10601427,0.00020721,2]
[391197531,1760415056764,-1000.0,0.00020721,2]
[391197532,1760415056778,-1000.0,0.00020721,2]
[391197533,1760415056791,-507.94926773,0.00020721,2]
[391197534,1760415056802,-750.67814024,0.00020721,2]
[391197535,1760415056812,-1000.0,0.00020721,2]
[391197536,1760415056823,-1006.53703909,0.00020721,2]
[391197537,1760415056836,-1000.0,0.00020721,2]
[391197538,1760415056849,-1000.0,0.00020721,2]
[391197539,1760415056861,-503.67770281,0.00020721,2]
[391197540,1760415056872,-1000.0,0.00020721,2]
[391197541,1760415056883,-581.83506962,0.00020721,2]
[391197542,1760415056894,-1000.0,0.00020721,2]
[391197543,1760415056906,-1000.0,0.00020721,2]
[391197544,1760415056917,-1000.0,0.00020721,2]
[391197545,1760415056928,-386.30839064,0.00020721,2]
[391197546,1760415056938,-1000.0,0.00020721,2]
[391197547,1760415056949,-407.56425859,0.00020721,2]
[391197548,1760415056960,-1000.0,0.00020721,2]
[391197549,1760415056972,-1000.02901099,0.00020721,2]
[391197550,1760415056983,-1000.0,0.00020721,2]
[391197551,1760415056994,-1004.71422386,0.00020721,2]
[391197552,1760415057005,-502.56810543,0.00020721,2]
[391197553,1760415057018,-1000.0,0.00020721,2]
[391197554,1760415057032,-805.82776036,0.00020721,2]
[391197555,1760415057043,-1000.0,0.00020721,2]
[391197556,1760415057054,-1000.0,0.00020721,2]
[391197557,1760415057065,-500.92345823,0.00020721,2]
[391197558,1760415057076,-1000.0,0.00020721,2]
[391197559,1760415057087,-1000.0,0.00020721,2]
[391197560,1760415057098,-500.0,0.00020721,2]
[391197561,1760415057109,-1000.74755138,0.00020721,2]
[391197562,1760415057120,-501.25715562,0.00020721,2]
[391197563,1760415057131,-571.70364611,0.00020721,2]
[391197564,1760415057142,-1000.0,0.00020721,2]
[391197565,1760415057153,-1000.0,0.00020721,2]
[391197566,1760415057164,-500.48728147,0.00020721,2]
[391197567,1760415057175,-1000.0,0.00020821,2]
[391197568,1760415057187,-657.79793958,0.00020821,2]
[391197569,1760415057198,-1000.0,0.00020821,2]
[391197570,1760415057209,-1001.60511414,0.00020821,2]
[391197571,1760415057221,-1000.0,0.00020821,2]
[391197572,1760415057232,-1000.0,0.00020821,2]
[391197573,1760415057243,-500.0,0.00020886,2]
[391197574,1760415057255,-1000.0,0.00020921,2]
[391197575,1760415057266,-527.92815927,0.00020921,2]
[391197576,1760415057281,-500.0,0.00020921,2]
[391197577,1760415057293,-1000.0,0.00020921,2]
[391197578,1760415057304,-507.10817055,0.00020921,2]
[391197579,1760415057316,-500.0,0.00020921,2]
[391197580,1760415057327,-508.83361366,0.00020921,2]
[391197581,1760415057339,-500.0,0.00020921,2]
[391197582,1760415057350,-501.46367986,0.00020921,2]
[391197583,1760415057361,-1000.0,0.00020921,2]
[391197584,1760415057372,-500.0,0.0002116,2]
[391197585,1760415057383,-195.0,0.00021212,2]
[391197586,1760415057394,-630.46605884,0.00021268,2]
[391197587,1760415057405,-503.09828403,0.00021268,2]
[391197588,1760415057415,-747.19281656,0.00021268,2]
[391197589,1760415057427,-1500.0,0.00021268,2]
[391197590,1760415057439,-1500.0,0.00021268,2]
[391197591,1760415057450,-1500.0,0.00021268,2]
[391197592,1760415057461,-944.11568481,0.00021268,2]
[391197593,1760415057475,-1500.0,0.00021268,2]
[391197594,1760415057486,-1000.0,0.00021268,2]
[391197595,1760415057497,-1042.27752401,0.00021268,2]
[391197596,1760415057508,-484.86286373,0.00021268,2]
[391197597,1760415057519,-500.0,0.00021268,2]
[391197598,1760415057532,-1004.07427445,0.00021268,2]
[391197599,1760415057543,-500.0,0.00021268,2]
[391197600,1760415057555,-1000.0,0.00021268,2]
[391197601,1760415057566,-500.0,0.00021268,2]
[391197602,1760415057576,-1500.0,0.00021268,2]
[391197603,1760415057587,-1500.0,0.00021268,2]
[391197604,1760415057597,-1500.0,0.00021268,2]
[391197605,1760415057612,-1015.19846574,0.00021368,2]
[391197606,1760415057623,-619.95451207,0.00021368,2]
[391197607,1760415057633,-1031.26,0.0002142,3]
[391197608,1760415057643,-515.64,0.0002142,3]
[391197609,1760415057654,-1000.0,0.00021433,2]
[391197610,1760415057664,-500.0,0.00021434,2]
[391197611,1760415057675,-220.69672213,0.00021443,2]
[391197612,1760415057686,-1500.0,0.00021468,2]
[391197613,1760415057696,-1000.0,0.00021468,2]
[391197614,1760415057708,-1525.56898579,0.0002149,2]
[391197615,1760415057718,-1680.0,0.0002179,2]
[391197616,1760415057731,-240.0,0.0002179,2]
[391197617,1760415057743,-420.0,0.0002179,2]
[391197618,1760415057753,-397.0,0.0002179,2]
[391197619,1760415057767,-217.5,0.00021812,2]
[391197620,1760415057780,-2000.0,0.00021816,2]
[391197621,1760415057791,-1000.0,0.00021816,2]
[391197622,1760415057802,-2000.0,0.00021816,2]
[391197623,1760415057813,-2000.0,0.00021816,2]
[391197624,1760415057824,-500.0,0.00021816,2]
[391197625,1760415057835,-500.0,0.00021816,2]
[391197626,1760415057846,-1200.0,0.00021894,2]
[391197627,1760415057857,-511.44122755,0.00021917,2]
[391197628,1760415057868,-151.0,0.00021927,2]
[391197629,1760415057878,-153.46248783,0.00021927,2]
[391197630,1760415057890,-151.0,0.00021927,2]
[391197631,1760415057900,-151.0,0.00021927,2]
[391197632,1760415057911,-198.93012052,0.00021927,2]
[391197633,1760415057922,-152.14742799,0.00021927,2]
[391197634,1760415057934,-154.95186631,0.00021927,2]
[391197635,1760415057945,-151.0,0.00021927,2]
[391197636,1760415057956,-151.0,0.00021927,2]
[391197637,1760415057967,-151.24075468,0.00021927,2]
[391197638,1760415057977,-500.0,0.00021927,2]
[391197639,1760415057989,-151.0,0.00021927,2]
[391197640,1760415057999,-500.0,0.00021927,2]
[391197641,1760415058010,-151.0,0.00021982,2]
[391197642,1760415058209,-151.0,0.00021982,2]
[391197643,1760415058230,-151.0,0.00021982,2]
[391197644,1760415058239,-194.12412098,0.00021982,2]
[391197645,1760415058249,-500.0,0.00021982,2]
[391197646,1760415058259,-151.0,0.00021982,2]
[391197647,1760415058268,-500.0,0.00021982,2]
[391197648,1760415058281,-297.48971979,0.00022,6]
[391197649,1760415058290,-34542.26,0.00022,7]
[391197650,1760415058299,-402.43064913,0.00022,7]
[391197651,1760415058309,-1000.0,0.00022016,2]
[391197652,1760415058319,-201.44766508,0.00022037,2]
[391197653,1760415058329,-151.0,0.00022037,2]
[391197654,1760415058339,-151.0,0.00022037,2]
[391197655,1760415058348,-266.42671123,0.00022037,2]
[391197656,1760415058358,-151.0,0.00022037,2]
[391197657,1760415058367,-500.0,0.00022037,2]
[391197658,1760415058376,-245.0,0.00022091,2]
[391197659,1760415058386,-200.5652559,0.00022091,2]
[391197660,1760415058395,-151.0,0.00022091,2]
[391197661,1760415058405,-500.0,0.00022091,2]
[391197662,1760415058415,-151.0,0.00022146,2]
[391197663,1760415058425,-507.13236645,0.00022146,2]
[391197664,1760415058434,-245.0,0.00022201,2]
[391197665,1760415058444,-2000.0,0.00022364,2]
[391197666,1760415058454,-2000.0,0.00022364,2]
[391197667,1760415058464,-240.0,0.00022412,2]
[391197668,1760415058479,-924.08200686,0.00022515,2]
[391197669,1760415058489,-653.10220913,0.00022524,2]
[391197670,1760415058498,-720.0,0.00022566,20]
[391197671,1760415058508,-302.0,0.00022787,2]
[391197672,1760415058517,-1000.0,0.00022803,2]
[391197673,1760415058527,-618.56586699,0.00022936,2]
[391197674,1760415058537,-220.69672213,0.00022973,2]
[391197675,1760415058547,-262.5,0.00023012,2]
[391197676,1760415058557,-165.0,0.00023096,9]
[391197677,1760415058566,-95000.0,0.00023288,30]
[391197678,1760415058576,-402.43064913,0.00023288,30]
[391197679,1760415058585,-285.0,0.00023612,2]
[391197680,1760415058595,-2315.0,0.00023726,2]
[391197681,1760415058604,-587.0,0.00023727,2]
[391197682,1760415058613,-1000.0,0.000238,2]
[391197683,1760415058623,-1000.0,0.000238,2]
[391197684,1760415058632,-402.43064913,0.00024,30]
[391197685,1760415058641,-814.58,0.00024165,2]
[391197686,1760415058651,-700.88070941,0.00024173,2]
[391197687,1760415058660,-166.0,0.00024192,12]
[391197688,1760415058670,-307.5,0.00024212,2]
[391197689,1760415058679,-220.69672213,0.00024503,2]
[391197690,1760415058689,-3000.0,0.000248,2]
[391197691,1760415058699,-3000.0,0.0002481,2]
[391197692,1760415058708,-330.0,0.00024812,2]
[391197693,1760415058718,-3000.0,0.0002482,2]
[391197694,1760415058727,-864.0,0.00024822,20]
[391197695,1760415058736,-3000.0,0.0002483,2]
[391197696,1760415058746,-3000.0,0.0002484,2]
[391197697,1760415058755,-3000.0,0.0002485,2]
[391197698,1760415058764,-3000.0,0.0002486,2]
[391197699,1760415058774,-151.0,0.00024862,2]
[391197700,1760415058784,-151.0,0.00024862,2]
[391197701,1760415058794,-151.0,0.00024862,2]
[391197702,1760415058803,-151.0,0.00024862,2]
[391197703,1760415058812,-261.60291283,0.00024862,2]
[391197704,1760415058822,-151.0,0.00024862,2]
[391197705,1760415058832,-151.0,0.00024862,2]
[391197706,1760415058842,-151.0,0.00024862,2]
[391197707,1760415058851,-151.0,0.00024862,2]
[391197708,1760415058860,-151.0,0.00024862,2]
[391197709,1760415058870,-18603.8837,0.00024862,2]
[391197710,1760415058879,-151.0,0.00024862,2]
[391197711,1760415058888,-151.0,0.00024862,2]
[391197712,1760415058898,-151.0,0.00024862,2]
[391197713,1760415058907,-151.0,0.00024862,2]
[391197714,1760415058916,-151.0,0.00024862,2]
[391197715,1760415058925,-151.0,0.00024862,2]
[391197716,1760415058934,-250.0,0.00024862,2]
[391197717,1760415058943,-151.0,0.00024862,2]
[391197718,1760415058953,-250.0,0.00024862,2]
[391197719,1760415058963,-151.0,0.00024862,2]
[391197720,1760415058973,-250.0,0.00024862,2]
[391197721,1760415058983,-151.0,0.00024862,2]
[391197722,1760415058993,-250.0,0.00024862,2]
[391197723,1760415059002,-151.0,0.00024862,2]
[391197724,1760415059011,-250.0,0.00024862,2]
[391197725,1760415059021,-299.16358961,0.00024862,2]
[391197726,1760415059032,-250.0,0.00024862,2]
[391197727,1760415059041,-250.0,0.00024862,2]
[391197728,1760415059051,-250.0,0.00024862,2]
[391197729,1760415059060,-250.0,0.00024862,2]
[391197730,1760415059069,-250.0,0.00024862,2]
[391197731,1760415059079,-250.0,0.00024862,2]
[391197732,1760415059088,-250.0,0.00024862,2]
[391197733,1760415059098,-250.0,0.00024862,2]
[391197734,1760415059107,-250.0,0.00024862,2]
[391197735,1760415059116,-250.0,0.00024862,2]
[391197736,1760415059126,-250.0,0.00024862,2]
[391197737,1760415059135,-250.0,0.00024862,2]
[391197738,1760415059144,-250.0,0.00024862,2]
[391197739,1760415059153,-3000.0,0.0002487,2]
[391197740,1760415059162,-500.43150387,0.00024873,2]
[391197741,1760415059171,-503.41227825,0.00024873,2]
[391197742,1760415059180,-409.17640987,0.00024873,2]
[391197743,1760415059190,-500.0,0.00024873,2]
[391197744,1760415059199,-500.0,0.00024873,2]
[391197745,1760415059209,-500.0,0.00024873,2]
[391197746,1760415059218,-500.0,0.00024873,2]
[391197747,1760415059228,-500.0,0.00024873,2]
[391197748,1760415059237,-503.58952729,0.00024873,2]
[391197749,1760415059247,-504.18830182,0.00024873,2]
[391197750,1760415059256,-500.0,0.00024873,2]
[391197751,1760415059266,-3000.0,0.0002488,2]
[391197752,1760415059277,-3000.0,0.0002489,2]
[391197753,1760415059286,-3000.0,0.000249,2]
[391197754,1760415059296,-419302.226106,0.000249,2]
[391197755,1760415059306,-3000.0,0.0002491,2]
[391197756,1760415059315,-3000.0,0.0002492,2]
[391197757,1760415059324,-402.43064913,0.00024924,2]
[391197758,1760415059334,-160.0,0.00024924,2]
[391197759,1760415059343,-160.0,0.00024924,2]
[391197760,1760415059352,-417.15472785,0.00024924,2]
[391197761,1760415059361,-3000.0,0.0002493,2]
[391197762,1760415059371,-3000.0,0.0002494,2]
[391197763,1760415059380,-3000.0,0.0002495,2]
[391197764,1760415059389,-3000.0,0.0002496,2]
[391197765,1760415059399,-3000.0,0.0002497,2]
[391197766,1760415059408,-3000.0,0.0002498,2]
[391197767,1760415059418,-3000.0,0.0002499,2]
[391197768,1760415059427,-3000.0,0.00025,2]
[391197769,1760415059436,-3000.0,0.0002501,2]
[391197770,1760415059445,-3000.0,0.0002502,2]
[391197771,1760415059455,-3000.0,0.0002503,2]
[391197772,1760415059464,-3000.0,0.0002504,2]
[391197773,1760415059478,-3000.0,0.0002505,2]
[391197774,1760415059487,-3000.0,0.0002506,2]
[391197775,1760415059497,-3000.0,0.0002507,2]
[391197776,1760415059507,-3000.0,0.0002508,2]
[391197777,1760415059516,-3000.0,0.0002509,2]
[391197778,1760415059528,-4683.434975,0.000251,2]
[391197779,1760415059537,-368.659,0.00025194,9]
[391197780,1760415059550,-2609.79642767,0.00025197,2]
[391197781,1760415059559,-167.0,0.00025288,16]
[391197782,1760415059568,-1629.15,0.00025316,2]
[391197783,1760415059578,-19292.2273969,0.0002541,2]
[391197784,1760415059587,-352.5,0.00025412,2]
[391197785,1760415059596,-1000.0,0.00025421,2]
[391197786,1760415059606,-1006.49356401,0.00025421,2]
[391197787,1760415059615,-2471.7892045,0.00025687,2]
[391197788,1760415059625,-823.0,0.00025836,2]
[391197789,1760415059634,-6218.90154936,0.00025958,2]
[391197790,1760415059643,-375.0,0.00026012,2]
[391197791,1760415059652,-8091.76,0.00026027,2]
[391197792,1760415059661,-220.69672213,0.00026032,2]
[391197793,1760415059670,-168.0,0.00026384,20]
[391197794,1760415059680,-2443.73,0.00026467,2]
[391197795,1760415059689,-34542.26,0.000265,7]
[391197796,1760415059698,-402.43064913,0.000265,7]
[391197797,1760415059707,-397.5,0.00026612,2]
[391197798,1760415059716,-19780.9051412,0.00026973,2]
[391197799,1760415059726,-420.0,0.00027212,2]
[391197800,1760415059735,-1000.0,0.00027304,30]
[391197801,1760415059745,-8091.76,0.00027397,4]
[391197802,1760415059754,-2915.2,0.000274,2]
[391197803,1760415059763,-205.0,0.00027479,25]
[391197804,1760415059773,-220.69672213,0.00027562,2]
[391197805,1760415059786,-3258.31,0.00027617,2]
[391197806,1760415059795,-800.0,0.00027696,2]
[391197807,1760415059805,-442.5,0.00027812,2]
[391197808,1760415059814,-631.0,0.00027902,2]
[391197809,1760415059823,-2166.202,0.00027902,2]
[391197810,1760415059832,-4199.0,0.00027903,2]
[391197811,1760415059841,-1152.0,0.00028132,2]
[391197812,1760415059850,-1665.0,0.00028238,2]
[391197813,1760415059869,-151.074,0.00028349,2]
[391197814,1760415059880,-208.09,0.00028392,2]
[391197815,1760415059890,-981.484,0.00028392,2]
[391197816,1760415059900,-465.0,0.00028412,2]
[391197817,1760415059909,-800.0,0.00028568,2]
[391197818,1760415059919,-314.0,0.00028575,2]
[391197819,1760415059930,-180.0,0.00028575,30]
[391197820,1760415059939,-8091.76,0.00028767,6]
[391197821,1760415059949,-4072.88,0.00028768,2]